bitfinex/quotes_SOLUSD_20241001
["timestamp","ask_amount","ask_price","bid_price","bid_amount"]
[1727774225225,6.3464,157.57,157.52,22.2186]
[1727774225430,0.35685865,157.61,157.52,15.8703]
[1727774225632,6.3469,157.56,157.52,15.8703]
[1727774226346,6.3472,157.55,157.51,23.776884]
[1727774226531,6.3472,157.55,157.5,6.3491]
[1727774227817,6.3476,157.54,157.5,23.776884]
[1727774228415,6.3472,157.55,157.51,1.26957454]
[1727774228615,6.3472,157.55,157.51,13.75787352]
[1727774228839,6.3472,157.55,157.51,20.10657352]
[1727774229837,6.3472,157.55,157.51,13.75787352]
[1727774230024,6.3472,157.55,157.5,36.26518298]
[1727774230213,6.3472,157.55,157.51,6.3487]
[1727774231013,6.3472,157.55,157.5,30.125884]
[1727774231337,6.3472,157.55,157.5,42.61418298]
[1727774231943,6.3472,157.55,157.51,1.26950643]
[1727774233035,15.8637,157.6,157.51,1.26950643]
[1727774233340,6.3468,157.56,157.52,6.3483]
[1727774233637,6.3468,157.56,157.53,1.26942438]
[1727774234932,15.8637,157.6,157.51,34.70849898]
[1727774235230,6.3476,157.54,157.51,15.8716]
[1727774235435,6.3476,157.54,157.5,30.125984]
[1727774236011,6.3476,157.54,157.51,1.2695142]
[1727774236315,6.3476,157.54,157.5,30.125984]
[1727774242241,6.3472,157.55,157.51,6.3487]
[1727774242440,6.3466,157.57,157.53,23.776884]
[1727774242646,15.8626,157.61,157.53,23.776884]
[1727774242819,6.3465,157.57,157.53,30.124584]
[1727774243721,6.3465,157.57,157.54,1.26927205]
[1727774245744,6.3465,157.57,157.53,30.124584]
[1727774246634,0.35685865,157.6,157.53,23.776884]
[1727774246942,7.3697,157.62,157.49,15.8732]
[1727774247142,23.776884,157.61,157.5,30.0]
[1727774247522,23.776884,157.61,157.5,31.26963018]
[1727774248048,6.3481,157.53,157.5,1.26963018]
[1727774248234,6.3476,157.54,157.5,7.61873018]
[1727774249847,6.348,157.53,157.5,1.26963018]
[1727774250148,6.348,157.53,157.49,22.2227]
[1727774251428,6.348,157.53,157.5,1.26962925]
[1727774252353,6.348,157.53,157.49,22.2227]
[1727774252526,6.348,157.53,157.5,1.26962951]
[1727774253028,6.3477,157.54,157.5,1.26962951]
[1727774253430,15.8662,157.57,157.51,23.776884]
[1727774253632,6.3476,157.54,157.5,30.125884]
[1727774254228,6.3471,157.56,157.52,6.3482]
[1727774254437,6.3467,157.57,157.53,7.61728117]
[1727774254740,6.3468,157.56,157.52,30.125184]
[1727774257136,6.3474,157.55,157.51,22.2203]
[1727774263044,0.35685865,157.59,157.51,22.2203]
[1727774263045,0.35685865,157.59,157.51,15.8716]
[1727774263246,6.3473,157.55,157.51,22.2203]
[1727774265560,6.3473,157.55,157.52,1.26948063]
[1727774267152,6.3473,157.55,157.51,22.2203]
[1727774270260,15.8625,157.61,157.53,15.8697]
[1727774270468,6.3462,157.58,157.54,7.61672916]
[1727774270760,6.3476,157.54,157.5,22.2213]
[1727774270959,0.35685865,157.57,157.51,23.776884]
[1727774271260,6.3473,157.55,157.51,23.776884]
[1727774271858,6.3473,157.55,157.51,30.125584]
[1727774273856,6.3484,157.52,157.51,23.776884]
[1727774274066,15.8665,157.57,157.5,23.776884]
[1727774274360,15.8665,157.57,157.49,23.02510404]
[1727774274361,0.35685865,157.56,157.49,23.02510404]
[1727774274569,6.3488,157.51,157.49,16.4066]
[1727774274743,6.3499,157.49,157.45,15.5691]
[1727774274944,6.3499,157.49,157.46,3.45049715]
[1727774275170,0.35685865,157.52,157.47,3.45049715]
[1727774275351,6.3497,157.49,157.46,1.269983]
[1727774277753,6.3497,157.49,157.45,21.9203]
[1727774277959,6.3497,157.49,157.46,1.26997707]
[1727774279769,6.3497,157.49,157.45,21.9203]
[1727774280276,6.3497,157.49,157.46,1.26996308]
[1727774280877,6.3497,157.49,157.45,21.9203]
[1727774281073,6.3496,157.49,157.45,21.9202]
[1727774281253,6.35,157.48,157.45,15.5691]
[1727774281453,15.8704,157.53,157.45,15.5691]
[1727774281454,6.3504,157.47,157.45,15.5691]
[1727774282256,0.35685865,157.52,157.42,7.43929517]
[1727774282257,6.3508,157.46,157.42,7.43929517]
[1727774282473,6.3514,157.45,157.42,1.10539517]
[1727774282654,6.3514,157.45,157.41,16.65]
[1727774283963,5.8514,157.45,157.41,16.65]
[1727774285785,0.35685865,157.48,157.41,16.65]
[1727774285786,6.3521,157.43,157.41,16.65]
[1727774286876,6.3516,157.44,157.41,16.65]
[1727774287371,0.35685865,157.43,157.38,6.62394994]
[1727774287571,6.3532,157.4,157.36,21.4348]
[1727774291578,6.3529,157.41,157.37,6.3543]
[1727774292161,6.3529,157.41,157.36,21.435]
[1727774293278,6.3532,157.4,157.36,21.435]
[1727774296270,6.3529,157.41,157.37,1.2707705]
[1727774296873,6.3529,157.41,157.37,7.6251705]
[1727774300274,15.8771,157.46,157.36,30.9671]
[1727774300476,6.3532,157.4,157.36,37.3218]
[1727774302583,6.3532,157.4,157.37,1.27074716]
[1727774302992,6.3529,157.41,157.37,7.62514716]
[1727774303369,6.3529,157.41,157.37,6.3544]
[1727774304476,6.3532,157.4,157.36,37.3218]
[1727774305288,6.71045865,157.39,157.33,22.52083243]
[1727774305493,0.35685865,157.43,157.34,6.3553]
[1727774305675,6.3533,157.4,157.35,6.3548]
[1727774305991,6.3533,157.4,157.36,1.2708037]
[1727774306290,6.3536,157.39,157.35,6.3549]
[1727774307493,6.3536,157.39,157.34,6.3556]
[1727774308583,0.35685865,157.43,157.34,6.3556]
[1727774308794,6.354,157.38,157.34,6.3556]
[1727774309095,6.3532,157.41,157.35,7.62609131]
[1727774309269,6.3532,157.4,157.36,6.3548]
[1727774309470,6.3532,157.4,157.37,1.27073456]
[1727774310383,6.3532,157.4,157.36,6.3548]
[1727774314193,6.3536,157.39,157.35,6.3551]
[1727774318398,6.3533,157.4,157.35,6.3551]
[1727774318899,6.3533,157.4,157.36,7.62553198]
[1727774319093,7.4236,157.44,157.37,23.776884]
[1727774319275,15.8776,157.46,157.38,1.27051841]
[1727774319475,15.8776,157.46,157.39,6.3533]
[1727774319686,6.3522,157.43,157.39,6.3533]
[1727774319885,0.35685865,157.45,157.37,55.269484]
[1727774320206,6.3526,157.42,157.38,6.354]
[1727774320498,6.3516,157.44,157.4,6.3529]
[1727774321283,6.3516,157.44,157.39,22.2371]
[1727774321682,6.352,157.43,157.39,22.2371]
[1727774327083,6.3517,157.44,157.39,22.2371]
[1727774327699,6.354,157.39,157.37,15.6069]
[1727774328022,6.3535,157.4,157.34,3.44243629]
[1727774328198,6.3535,157.4,157.35,7.62602341]
[1727774328392,6.3535,157.4,157.35,6.3552]
[1727774329206,6.3537,157.39,157.34,9.79803629]
[1727774329509,15.8784,157.45,157.34,3.44243629]
[1727774329510,6.71095865,157.38,157.34,3.44243629]
[1727774329722,6.3541,157.38,157.34,3.44243629]
[1727774330215,6.3541,157.38,157.33,37.9898]
[1727774330596,6.1325,157.42,157.34,6.3556]
[1727774330812,0.35685865,157.41,157.34,6.3556]
[1727774331113,6.3532,157.4,157.35,23.776884]
[1727774331709,6.3537,157.39,157.34,6.3556]
[1727774331902,6.1325,157.42,157.33,37.9899]
[1727774332090,6.3537,157.39,157.33,37.9899]
[1727774332411,6.3532,157.4,157.35,6.3551]
[1727774333110,6.3532,157.4,157.35,7.62594093]
[1727774333317,6.3528,157.41,157.35,7.62594093]
[1727774334293,6.3532,157.4,157.35,6.3551]
[1727774334721,15.8784,157.45,157.37,6.3543]
[1727774334899,15.8784,157.45,157.35,15.8872]
[1727774334900,6.3528,157.41,157.36,23.776884]
[1727774335213,6.3528,157.41,157.36,30.131684]
[1727774335419,6.3528,157.41,157.33,15.7447]
[1727774335420,0.35685865,157.44,157.33,15.7447]
[1727774335601,15.8828,157.41,157.34,3.44883855]
[1727774335918,0.35685865,157.4,157.33,15.7447]
[1727774336292,6.3543,157.38,157.33,22.1006]
[1727774337721,6.3543,157.38,157.33,25.55025235]
[1727774337894,6.3543,157.38,157.33,22.1006]
[1727774338295,6.3543,157.38,157.33,25.55004373]
[1727774338513,6.3543,157.38,157.33,22.1006]
[1727774338990,6.3543,157.38,157.33,25.54988255]
[1727774339204,6.3543,157.38,157.33,22.1006]
[1727774339720,6.3543,157.38,157.33,25.54970053]
[1727774340307,0.35685865,157.4,157.33,15.7447]
[1727774340512,6.3549,157.36,157.31,28.86030509]
[1727774340706,6.3549,157.36,157.32,30.133284]
[1727774340901,0.35685865,157.4,157.3,16.6018]
[1727774341100,6.3562,157.33,157.3,16.6018]
[1727774341304,6.3562,157.33,157.3,20.05277952]
[1727774341812,6.3562,157.33,157.3,16.6018]
[1727774342015,15.8846,157.39,157.3,16.6018]
[1727774342016,6.3557,157.34,157.3,16.6018]
[1727774342196,55.541684,157.41,157.3,16.6018]
[1727774342197,6.3565,157.32,157.3,16.6018]
[1727774342400,55.541684,157.41,157.26,16.2189]
[1727774342401,6.51735865,157.36,157.26,16.2189]
[1727774342705,23.776884,157.34,157.26,16.2189]
[1727774342909,6.358,157.29,157.26,16.2189]
[1727774343111,6.358,157.29,157.27,3.44843975]
[1727774343900,6.358,157.29,157.26,16.2189]
[1727774344094,6.3584,157.28,157.26,16.2189]
[1727774344724,6.3584,157.28,157.24,15.8982]
[1727774346207,6.3584,157.28,157.24,22.2578]
[1727774349227,6.3584,157.28,157.24,15.8982]
[1727774350127,0.35685865,157.27,157.24,15.8982]
[1727774350335,6.3585,157.27,157.23,6.36]
[1727774350717,1.19565865,157.32,157.22,16.6108]
[1727774351036,6.3589,157.26,157.22,22.9712]
[1727774352530,0.35685865,157.29,157.22,16.6108]
[1727774352531,6.3594,157.25,157.22,16.6108]
[1727774353234,0.35685865,157.29,157.22,16.6108]
[1727774353538,6.3589,157.26,157.22,16.6108]
[1727774354415,6.71645865,157.25,157.21,15.9018]
[1727774354628,6.3596,157.25,157.21,15.9018]
[1727774355109,6.3597,157.24,157.21,15.9018]
[1727774355634,6.3602,157.23,157.19,6.3616]
[1727774356127,6.3602,157.23,157.18,31.4149]
[1727774356128,6.3605,157.22,157.18,37.7769]
[1727774356334,6.1687,157.3,157.16,6.60658988]
[1727774356335,6.3618,157.19,157.16,6.60658988]
[1727774356517,6.3618,157.19,157.15,15.908]
[1727774357020,0.8388,157.25,157.18,12.48829898]
[1727774357217,6.3604,157.23,157.19,20.12207181]
[1727774357431,6.3604,157.23,157.19,18.84989898]
[1727774358211,6.3604,157.23,157.19,12.48829898]
[1727774359117,6.3604,157.23,157.18,6.362]
[1727774359337,6.3605,157.22,157.18,6.362]
[1727774360117,0.35685865,157.25,157.18,6.362]
[1727774360320,6.3602,157.23,157.18,6.362]
[1727774361034,0.35685865,157.25,157.2,6.3611]
[1727774361335,0.8388,157.29,157.21,28.38959898]
[1727774361515,6.3585,157.27,157.22,6.3602]
[1727774361924,6.3585,157.27,157.22,18.84849898]
[1727774362113,6.3037,157.3,157.24,6.3593]
[1727774362323,6.3037,157.3,157.23,29.65958156]
[1727774362324,6.3581,157.28,157.23,34.74779898]
[1727774364318,6.3585,157.27,157.23,34.74779898]
[1727774365741,6.3585,157.27,157.23,28.38769898]
[1727774366442,6.3594,157.25,157.21,12.48829898]
[1727774367637,6.3589,157.26,157.21,18.84889898]
[1727774367838,0.35685865,157.25,157.21,18.84889898]
[1727774368340,6.3589,157.26,157.21,18.84889898]
[1727774368913,6.3589,157.26,157.22,20.12075025]
[1727774369236,6.3589,157.26,157.22,18.84879898]
[1727774370113,6.3581,157.28,157.24,6.3595]
[1727774370435,6.3577,157.29,157.25,18.84749898]
[1727774370624,6.3577,157.29,157.25,12.48829898]
[1727774371631,6.3573,157.3,157.26,18.84699898]
[1727774371835,6.3587,157.27,157.23,6.3599]
[1727774373737,6.3587,157.27,157.23,18.84819898]
[1727774374138,6.3581,157.28,157.24,20.11942099]
[1727774375443,0.8388,157.33,157.26,18.84679898]
[1727774375739,0.8388,157.33,157.28,12.48829898]
[1727774376041,6.3564,157.32,157.28,18.84629898]
[1727774376343,12.628,157.34,157.3,18.84549898]
[1727774376543,6.3556,157.34,157.3,18.84549898]
[1727774377239,6.3556,157.34,157.3,13.75960216]
[1727774378053,6.3556,157.34,157.3,12.48829898]
[1727774378540,6.3556,157.34,157.3,13.75960996]
[1727774379055,6.5098,157.38,157.32,12.48829898]
[1727774379056,6.3553,157.35,157.32,12.48829898]
[1727774379224,6.3549,157.36,157.33,12.48829898]
[1727774379420,0.8388,157.41,157.34,13.75936941]
[1727774379726,6.354,157.38,157.35,12.48829898]
[1727774380448,6.354,157.38,157.34,18.84389898]
[1727774380643,6.354,157.38,157.34,12.48829898]
[1727774381634,6.354,157.38,157.34,18.84379898]
[1727774384546,6.354,157.38,157.34,6.3555]
[1727774385241,6.354,157.38,157.33,34.73389898]
[1727774385447,6.354,157.38,157.33,22.2456]
[1727774385627,0.35685865,157.37,157.31,15.0976]
[1727774385828,6.3553,157.35,157.31,21.4543]
[1727774387851,16.7212,157.41,157.28,31.7902]
[1727774387852,6.3561,157.33,157.29,6.3576]
[1727774388146,6.3557,157.34,157.3,6.3572]
[1727774388523,6.71295865,157.33,157.29,6.3575]
[1727774388721,6.3564,157.32,157.28,18.84629898]
[1727774388965,6.3564,157.32,157.28,6.358]
[1727774389131,6.3564,157.32,157.27,51.09919898]
[1727774389447,6.3564,157.32,157.27,38.6109]
[1727774390449,0.35685865,157.35,157.27,32.2525]
[1727774390652,6.3573,157.3,157.27,15.8957]
[1727774391247,6.357,157.31,157.27,22.254]
[1727774393346,1.19565865,157.35,157.29,6.3573]
[1727774393545,6.356,157.34,157.3,6.3572]
[1727774393724,6.356,157.34,157.29,28.38209898]
[1727774394050,6.356,157.34,157.29,34.73969898]
[1727774394546,6.3556,157.35,157.3,13.7596756]
[1727774394855,6.3556,157.35,157.31,6.3566]
[1727774395955,6.3556,157.35,157.3,20.1168756]
[1727774396622,6.6003,157.36,157.3,20.1168756]
[1727774396827,6.3558,157.34,157.3,6.3572]
[1727774397228,6.3558,157.34,157.3,7.62848942]
[1727774397446,6.3558,157.34,157.3,6.3572]
[1727774398031,6.3558,157.34,157.3,7.62849344]
[1727774398654,6.3558,157.34,157.3,6.3572]
[1727774399448,0.35685865,157.33,157.23,15.1662]
[1727774399630,6.3579,157.29,157.25,6.3591]
[1727774400441,6.3579,157.29,157.23,43.55429898]
[1727774400648,6.3579,157.29,157.24,6.3595]
[1727774401255,6.3579,157.29,157.25,6.3592]
[1727774401761,6.3574,157.3,157.25,6.3592]
[1727774401934,6.3574,157.3,157.24,12.48829898]
[1727774402135,15.8905,157.33,157.23,15.1662]
[1727774402136,6.3569,157.31,157.26,6.3587]
[1727774402454,6.3569,157.31,157.26,7.63026627]
[1727774402767,15.8905,157.33,157.26,6.3587]
[1727774402974,6.3576,157.29,157.25,22.257]
[1727774404361,15.8905,157.33,157.26,1.27169117]
[1727774404562,6.3573,157.3,157.26,7.63049117]
[1727774404765,6.3573,157.3,157.26,6.3588]
[1727774405771,6.3573,157.3,157.25,22.2569]
[1727774406075,6.3573,157.3,157.25,15.8979]
[1727774406277,6.3573,157.3,157.26,6.3586]
[1727774406571,0.8388,157.34,157.27,17.16745358]
[1727774406873,6.3567,157.32,157.28,7.6294033]
[1727774407455,6.3567,157.32,157.28,6.3579]
[1727774407871,6.3561,157.33,157.29,6.3576]
[1727774408072,22.4881,157.36,157.3,1.27135904]
[1727774408278,6.3559,157.34,157.3,1.27135904]
[1727774408786,6.6003,157.36,157.3,1.27135904]
[1727774408957,6.3549,157.36,157.3,1.27135904]
[1727774409277,6.3548,157.36,157.32,6.3564]
[1727774409482,6.3548,157.36,157.32,7.62749206]
[1727774413582,6.354,157.38,157.34,6.3553]
[1727774414013,6.354,157.38,157.34,7.62622987]
[1727774417688,6.354,157.38,157.34,6.3553]
[1727774425699,6.354,157.38,157.35,12.42840247]
[1727774428169,6.71145865,157.37,157.33,22.2456]
[1727774428373,6.3546,157.37,157.33,34.67400247]
[1727774428585,6.71165865,157.36,157.33,15.8897]
[1727774428779,6.3548,157.36,157.33,15.8897]
[1727774428980,6.3548,157.36,157.32,18.78470247]
[1727774432780,0.35685865,157.35,157.3,15.8923]
[1727774432995,6.3561,157.33,157.3,15.8923]
[1727774433971,0.35685865,157.32,157.27,15.8957]
[1727774434193,0.35685865,157.35,157.26,12.42840247]
[1727774434499,15.8894,157.34,157.25,18.78750247]
[1727774434688,6.3589,157.26,157.22,1.10674173]
[1727774434875,6.71635865,157.25,157.21,31.6193]
[1727774435705,6.71635865,157.25,157.21,37.9801]
[1727774436084,0.35685865,157.25,157.21,37.9801]
[1727774436295,6.3589,157.26,157.21,50.40850247]
[1727774437091,0.35685865,157.25,157.21,50.40850247]
[1727774437694,0.35685865,157.25,157.21,37.9801]
[1727774438082,6.3589,157.26,157.21,37.9801]
[1727774438806,6.3585,157.27,157.21,31.6193]
[1727774439099,6.71575865,157.26,157.22,6.3604]
[1727774439294,0.35685865,157.25,157.22,6.3604]
[1727774439800,15.8938,157.3,157.21,31.6193]
[1727774439998,6.3582,157.28,157.23,15.8995]
[1727774440300,0.35685865,157.27,157.23,22.2595]
[1727774440708,6.358,157.29,157.25,6.3592]
[1727774441004,6.3573,157.3,157.26,6.3587]
[1727774441504,6.5445,157.33,157.24,19.4548643]
[1727774441703,6.3552,157.35,157.29,15.8937]
[1727774442004,6.3549,157.36,157.3,20.72610783]
[1727774442302,6.3549,157.36,157.3,19.4548643]
[1727774442601,6.71215865,157.35,157.31,6.3567]
[1727774442800,6.3553,157.35,157.31,6.3567]
[1727774444306,6.3549,157.36,157.31,6.3567]
[1727774444496,6.3549,157.36,157.31,7.62788435]
[1727774444797,6.3549,157.36,157.31,6.3567]
[1727774445795,6.3549,157.36,157.32,6.3562]
[1727774447007,6.3549,157.36,157.31,22.2485]
[1727774448311,0.35685865,157.35,157.31,22.2485]
[1727774449919,6.71235865,157.35,157.31,15.8917]
[1727774450121,0.35685865,157.34,157.31,15.8917]
[1727774451316,6.3555,157.35,157.31,15.8917]
[1727774451819,0.35685865,157.34,157.31,15.8917]
[1727774452318,6.71275865,157.34,157.3,6.3571]
[1727774452615,6.3559,157.34,157.28,30.9504]
[1727774452920,6.3559,157.34,157.29,6.3575]
[1727774454716,6.3559,157.34,157.3,6.3571]
[1727774455999,6.5055,157.38,157.29,6.3575]
[1727774456000,6.71285865,157.33,157.29,6.3575]
[1727774456214,6.356,157.33,157.29,6.3575]
[1727774457518,6.5055,157.38,157.31,12.43372596]
[1727774457825,6.3551,157.36,157.33,12.43372596]
[1727774460424,6.3551,157.36,157.32,12.43372596]
[1727774460605,6.5055,157.38,157.31,6.3567]
[1727774460606,0.35685865,157.35,157.31,6.3567]
[1727774460925,6.3556,157.35,157.31,6.3567]
[1727774461128,0.35685865,157.34,157.31,6.3567]
[1727774461420,6.71245865,157.34,157.3,34.68372596]
[1727774461598,6.71285865,157.33,157.3,15.8929]
[1727774461920,6.5055,157.38,157.27,22.2539]
[1727774461921,6.3571,157.31,157.27,22.2539]
[1727774462412,6.3571,157.31,157.27,34.68762596]
[1727774463621,6.3571,157.31,157.27,22.2539]
[1727774465606,6.3577,157.29,157.25,13.01100295]
[1727774466927,6.551,157.32,157.26,17.16865874]
[1727774467424,6.3571,157.31,157.27,6.3581]
[1727774467730,6.3571,157.31,157.26,17.16865874]
[1727774467731,6.3572,157.3,157.26,22.2557]
[1727774469532,6.3567,157.32,157.28,6.358]
[1727774470125,0.35685865,157.35,157.26,15.897]
[1727774470333,6.3573,157.3,157.26,22.2558]
[1727774474743,6.71465865,157.29,157.25,13.01110295]
[1727774474920,15.8895,157.34,157.25,6.65190295]
[1727774475236,6.3574,157.3,157.25,28.90880295]
[1727774475824,6.358,157.28,157.25,6.65190295]
[1727774476127,0.35685865,157.27,157.24,6.3596]
[1727774476440,0.35685865,157.27,157.22,15.9007]
[1727774477516,0.35685865,157.29,157.22,15.9007]
[1727774478125,6.3589,157.26,157.22,22.2611]
[1727774479640,6.71645865,157.25,157.2,29.21979288]
[1727774479847,6.3596,157.25,157.2,29.21979288]
[1727774480140,6.3596,157.25,157.2,22.85879288]
[1727774480316,6.3596,157.25,157.21,6.3608]
[1727774481941,6.3598,157.24,157.2,6.64979288]
[1727774482523,6.3598,157.24,157.2,13.01099288]
[1727774485139,15.8957,157.28,157.21,7.63285879]
[1727774485140,6.3593,157.25,157.21,7.63285879]
[1727774485524,6.3593,157.25,157.21,20.08281811]
[1727774486420,6.3593,157.25,157.21,18.81075932]
[1727774488140,6.3593,157.25,157.2,6.64979288]
[1727774488343,6.3601,157.23,157.2,6.64979288]
[1727774488840,6.3594,157.25,157.2,25.4606522]
[1727774489351,6.3594,157.25,157.21,20.0829146]
[1727774489513,6.3594,157.25,157.22,12.44995932]
[1727774491643,15.8957,157.28,157.23,12.44995932]
[1727774491644,6.3589,157.26,157.23,12.44995932]
[1727774493919,15.8957,157.28,157.22,12.44995932]
[1727774494124,6.3593,157.25,157.21,34.71275932]
[1727774495149,6.3597,157.24,157.21,28.35195932]
[1727774495448,6.3597,157.24,157.21,15.902]
[1727774497747,6.3597,157.24,157.21,28.35195932]
[1727774498323,6.3597,157.24,157.21,12.44995932]
[1727774498524,0.35685865,157.23,157.2,6.64979288]
[1727774498730,6.3605,157.22,157.18,34.71635932]
[1727774500032,6.3613,157.2,157.16,40.548463]
[1727774500348,6.3613,157.2,157.17,12.44995932]
[1727774502127,6.3606,157.22,157.19,12.44995932]
[1727774502442,6.3606,157.22,157.19,13.72218606]
[1727774502639,6.3606,157.22,157.19,12.44995932]
[1727774505047,6.3606,157.22,157.2,12.44995932]
[1727774505247,15.8969,157.27,157.21,12.44995932]
[1727774505429,6.3598,157.24,157.22,12.44995932]
[1727774508654,6.3598,157.24,157.21,12.44995932]
[1727774511658,6.3601,157.23,157.21,12.44995932]
[1727774511833,6.3601,157.23,157.2,12.44995932]
[1727774513853,6.3601,157.23,157.19,34.71565932]
[1727774514429,6.3601,157.23,157.19,22.2657]
[1727774514633,6.71755865,157.22,157.19,15.9041]
[1727774514848,6.3607,157.22,157.19,15.9041]
[1727774517280,6.3607,157.22,157.19,28.35405932]
[1727774517482,6.3598,157.24,157.2,20.08332779]
[1727774517784,6.3598,157.24,157.21,12.44995932]
[1727774519378,6.3598,157.24,157.2,18.81115932]
[1727774519676,6.3605,157.22,157.19,15.9041]
[1727774519976,6.3602,157.23,157.19,22.2657]
[1727774520578,0.35685865,157.26,157.19,22.2657]
[1727774520782,6.3605,157.22,157.19,22.2657]
[1727774522260,6.3604,157.23,157.19,22.2657]
[1727774523175,0.35685865,157.26,157.19,15.9041]
[1727774523489,17.09415865,157.25,157.16,50.08743289]
[1727774523660,17.09415865,157.25,157.17,3.45947946]
[1727774523981,6.6391,157.22,157.13,15.9096]
[1727774524176,6.3624,157.18,157.14,33.4605734]
[1727774524359,6.3624,157.18,157.14,30.0]
[1727774524560,6.3624,157.18,157.13,34.72345932]
[1727774525073,6.3624,157.18,157.14,18.81365932]
[1727774525269,6.3624,157.18,157.16,12.44995932]
[1727774525468,6.3611,157.21,157.17,20.0849956]
[1727774526087,6.3611,157.21,157.17,12.44995932]
[1727774526383,6.71795865,157.21,157.17,12.44995932]
[1727774528363,0.35685865,157.21,157.17,12.44995932]
[1727774528568,6.3613,157.2,157.16,18.81255932]
[1727774529277,6.3613,157.2,157.16,6.3626]
[1727774529578,6.3613,157.2,157.16,18.81255932]
[1727774530273,6.3617,157.19,157.16,12.44995932]
[1727774534963,6.3617,157.19,157.15,34.72065932]
[1727774535464,6.3617,157.19,157.15,22.2707]
[1727774535791,6.3617,157.19,157.15,34.72065932]
[1727774535980,6.3614,157.2,157.16,18.81285932]
[1727774536168,6.3601,157.23,157.19,18.81135932]
[1727774536376,6.3966,157.26,157.21,12.44995932]
[1727774536560,6.3966,157.26,157.22,12.44995932]
[1727774536561,6.3593,157.25,157.22,12.44995932]
[1727774537484,6.3597,157.24,157.22,12.44995932]
[1727774537784,6.3597,157.24,157.21,12.44995932]
[1727774538776,6.3597,157.24,157.2,6.3609]
[1727774539092,6.3597,157.24,157.21,12.44995932]
[1727774539757,6.3597,157.24,157.2,6.3609]
[1727774539959,6.3597,157.24,157.2,12.44995932]
[1727774540359,6.3597,157.24,157.21,12.44995932]
[1727774541060,16.7336,157.29,157.23,12.44995932]
[1727774541260,16.7336,157.29,157.24,12.44995932]
[1727774541889,6.3592,157.26,157.21,22.2625]
[1727774542075,6.3592,157.26,157.23,12.44995932]
[1727774542876,6.3592,157.26,157.21,22.2625]
[1727774543092,6.3592,157.26,157.23,12.44995932]
[1727774544171,6.3592,157.26,157.22,6.3605]
[1727774544380,0.35685865,157.25,157.23,12.44995932]
[1727774544763,0.35685865,157.26,157.21,15.9017]
[1727774544966,0.35685865,157.26,157.21,28.35165932]
[1727774545168,6.3595,157.25,157.21,28.35165932]
[1727774545589,6.71685865,157.24,157.21,12.44995932]
[1727774545886,6.36,157.24,157.21,12.44995932]
[1727774548506,6.36,157.24,157.2,6.361]
[1727774548678,6.36,157.24,157.21,12.44995932]
[1727774549271,6.71695865,157.23,157.21,12.44995932]
[1727774549470,6.3601,157.23,157.2,12.44995932]
[1727774550374,0.35685865,157.22,157.19,12.44995932]
[1727774550569,0.8388,157.29,157.15,6.64302309]
[1727774550570,6.3613,157.2,157.16,18.81275932]
[1727774552390,6.3613,157.2,157.16,6.3628]
[1727774552569,1.19565865,157.24,157.15,22.2709]
[1727774552570,6.71855865,157.19,157.15,22.2709]
[1727774552893,6.3617,157.19,157.15,34.72085932]
[1727774553792,6.3617,157.19,157.16,12.44995932]
[1727774554183,6.3617,157.19,157.15,34.72085932]
[1727774554693,6.3617,157.19,157.15,22.2709]
[1727774555893,6.3617,157.19,157.15,35.99339115]
[1727774556989,15.9006,157.23,157.16,12.44995932]
[1727774557169,6.3611,157.21,157.18,12.44995932]
[1727774557783,0.8388,157.24,157.15,15.9077]
[1727774557975,6.3618,157.19,157.15,34.72065932]
[1727774565898,16.7388,157.24,157.16,12.44995932]
[1727774566087,6.3613,157.2,157.16,20.08505025]
[1727774566485,6.3613,157.2,157.16,18.81255932]
[1727774566693,6.3617,157.19,157.15,34.72055932]
[1727774568409,6.3617,157.19,157.15,22.2706]
[1727774570401,6.3621,157.18,157.15,15.9077]
[1727774570803,6.3621,157.18,157.16,0.819535]